fUSD/lending_fUSD_20250906
["ID","MTS","AMOUNT","RATE_DAILY","PERIOD"]
[383809835,1757124558330,-400.79688209,0.00054794,120]
[383809836,1757124558351,-500.0,0.00054794,120]
[383809837,1757124558373,-360.10802821,0.00054794,120]
[383809838,1757124558407,-401.78023214,0.00054794,120]
[383809839,1757124558445,-401.12064936,0.00054794,120]
[383809840,1757124558471,-400.0,0.00054794,120]
[383809841,1757124558493,-768.0,0.00056095,60]
[383809842,1757124558513,-1000.0,0.00056325,120]
[383809843,1757124558536,-415.85445379,0.0005711,15]
[383809844,1757124558559,-150.61,0.00057854,2]
[383809845,1757124558581,-157.0,0.000583,120]
[383809846,1757124558603,-159.0,0.000583,120]
[383809847,1757124558623,-1090.22,0.000597,120]
[383809848,1757124558645,-816.29554672,0.00059988,120]
[383809849,1757124558667,-500.0,0.00060299,120]
[383809850,1757124558689,-415.85445379,0.00060366,15]
[383809851,1757124558712,-500.0,0.00061,120]
[383809852,1757124558733,-150.61,0.00061258,2]
[383809853,1757124558754,-656.0,0.00061705,120]
[383809854,1757124558776,-274.00511,0.0006238,108]
[383809855,1757124558797,-294.02,0.000627,14]
[383809856,1757124558820,-907.06148988,0.00062867,120]
[383809857,1757124558842,-274.00512,0.0006338,112]
[383809858,1757124558865,-415.85445379,0.00063622,15]
[383809859,1757124558887,-150.0,0.00064071,30]
[383809860,1757124558910,-160.34,0.00064107,120]
[383809861,1757124558931,-150.0,0.00064219,30]
[383809862,1757124558952,-150.0,0.00064336,30]
[383809863,1757124558973,-274.00512,0.0006438,117]
[383809864,1757124558996,-150.0,0.00064456,30]
[383809865,1757124559018,-150.0,0.00064785,30]
[383809866,1757124559042,-150.0,0.0006536,120]
[383809867,1757124559066,-274.00512,0.0006538,120]
[383809868,1757124559089,-251.0,0.00065562,2]
[383809869,1757124559112,-200.0,0.00065634,2]
[383809870,1757124559135,-609.88,0.00065875,30]
[383809871,1757124559157,-274.00512,0.0006638,120]
[383809872,1757124559181,-415.85445379,0.00066877,15]
[383809873,1757124559205,-274.00511,0.0006738,120]
[383809874,1757124559228,-198.0,0.00068,120]
[383809875,1757124559249,-500.0,0.00068352,2]
[383809876,1757124559271,-500.0,0.00068352,2]
[383809877,1757124559294,-166.31499016,0.00068392,120]
[383809878,1757124559316,-4048.8437,0.00068393,2]
[383809879,1757124559338,-157.0,0.000685,120]
[383809880,1757124559358,-277.0,0.000688,120]
[383809881,1757124559379,-2092.5890717,0.0007,120]
[383809882,1757124559400,-415.85445379,0.00070133,15]
[383809883,1757124559421,-2000.0,0.00071,120]
[383809884,1757124559458,500.0,0.00068352,2]
[383809885,1757124559510,500.0,0.00068352,2]
[383809886,1757124559957,500.0,0.00068352,2]
[383809887,1757124560745,500.0,0.00068352,2]
[383809888,1757124561475,500.0,0.00068352,2]
[383809889,1757124562132,500.0,0.00068352,2]
[383809890,1757124562908,500.0,0.00068352,2]
[383809891,1757124563679,500.0,0.00068352,2]
[383809892,1757124564454,522.47168492,0.00068352,2]
[383809893,1757124572089,-1000.0,0.000727,2]
[383809894,1757124572111,-2500.0,0.000727,2]
[383809895,1757124572171,-34543.0,0.000728,120]
[383809896,1757124572192,-186.908,0.00072808,120]
[383809897,1757124572212,-2000.0,0.00073,120]
[383809898,1757124572232,-415.85445379,0.00073389,15]
[383809899,1757124574106,151.0,0.00068352,2]
[383809900,1757124574864,151.0,0.00068352,2]
[383809901,1757124576011,151.0,0.00068352,2]
[383809902,1757124577161,164.64562506,0.00068352,2]
[383809903,1757124603188,200.0,0.00038314,30]
[383809904,1757124611189,504.97,0.0004,14]
[383809917,1757124631698,-311.0,0.00038315,60]
[383809918,1757124631708,-311.0,0.00038315,60]
[383809919,1757124631717,-60.55944375,0.00038315,60]
[383809920,1757124631750,-250.44055625,0.00038315,60]
[383809921,1757124631760,-119.26721127,0.00038315,60]
[383809922,1757124631806,-191.73278873,0.00038315,60]
[383809923,1757124631816,-311.0,0.00038315,60]
[383809924,1757124631826,-311.0,0.00038315,60]
[383809925,1757124631835,-311.0,0.00038315,60]
[383809926,1757124631845,-311.0,0.00038315,60]
[383809927,1757124631854,-311.0,0.00038315,60]
[383809928,1757124631867,-311.0,0.00038315,60]
[383809929,1757124631877,-317.0,0.00038315,60]
[383809930,1757124631886,-311.0,0.00038315,60]
[383809931,1757124631895,-348.0,0.00038315,30]
[383809932,1757124631905,-168.22031138,0.00038315,60]
[383809933,1757124631914,-168.0,0.00073899,7]
[383809934,1757124631923,-187.78006525,0.00074042,2]
[383809935,1757124631933,-581.38813482,0.00074042,2]
[383809936,1757124631943,-248.71531821,0.00074042,2]
[383809937,1757124631953,-264.35924897,0.00074042,2]
[383809938,1757124631962,-261.92990565,0.00074042,2]
[383809939,1757124631971,-153.16896808,0.00074042,2]
[383809940,1757124631980,-162.25755689,0.00074042,2]
[383809941,1757124631990,-294.74745965,0.00074042,2]
[383809942,1757124631999,-565.95061977,0.00074042,2]
[383809944,1757124632009,-151.0,0.00074042,2]
[383809946,1757124632019,-500.0,0.00074042,2]
[383809948,1757124632028,-500.0,0.00074042,2]
[383809950,1757124632038,-500.0,0.00074042,2]
[383809952,1757124632047,-596.29169413,0.00074042,2]
[383809954,1757124632057,-168.0,0.00074368,2]
[383809955,1757124632066,-243.72373819,0.0007459,2]
[383809956,1757124632076,-2000.0,0.00075,120]
[383809957,1757124632086,-156.41,0.00075342,120]
[383809958,1757124632097,-257.91778498,0.00075411,2]
[383809959,1757124632110,-992.06646261,0.00075891,120]
[383809960,1757124632121,-150.99,0.00075891,2]
[383809961,1757124632131,-1490.48,0.00075891,2]
[383809962,1757124632140,-1637.20002965,0.00076,120]
[383809963,1757124632150,-5000.0,0.000765,120]
[383809964,1757124632160,-415.85445379,0.00076644,15]
[383809965,1757124632170,-400.0,0.00076712,120]
[383809967,1757124632180,-430.75315181,0.00076712,120]
[383809968,1757124632189,-400.0,0.00076712,120]
[383809969,1757124632199,-400.0,0.00076712,120]
[383809970,1757124632209,-400.0,0.00076712,120]
[383809971,1757124632219,-400.0,0.00076712,120]
[383809972,1757124632229,-400.0,0.00076712,120]
[383809973,1757124632239,-332.34,0.00076712,120]
[383809974,1757124632248,-400.0,0.00076712,120]
[383809975,1757124632258,-400.0,0.00076712,120]
[383809976,1757124632268,-400.0,0.00076712,120]
[383809977,1757124632278,-400.0,0.00076712,120]
[383809978,1757124632287,-484.55,0.00076712,120]
[383809979,1757124632298,-400.0,0.00076712,120]
[383809980,1757124632307,-400.0,0.00076712,120]
[383809981,1757124632317,-400.0,0.00076712,120]
[383809982,1757124632328,-400.0,0.00076712,120]
[383809983,1757124632338,-400.0,0.00076712,120]
[383809984,1757124632347,-400.0,0.00076712,120]
[383809985,1757124632357,-181.40231091,0.00076712,120]
[383809986,1757124632367,-400.0,0.00076712,120]
[383809987,1757124632376,-400.0,0.00076712,120]
[383809988,1757124632386,-400.0,0.00076712,120]
[383809989,1757124632396,-400.0,0.00076712,120]
[383809990,1757124632406,-88.50741403,0.00076712,120]
[383809991,1757124632418,-297.30778928,0.00076712,120]
[383809992,1757124632430,-14.18479669,0.00076712,120]
[383809993,1757124632439,-267.46074303,0.0007678,2]
[383809994,1757124632449,-211.48664964,0.00076781,2]
[383809995,1757124632459,-2000.0,0.00077,120]
[383809996,1757124632468,-168.0,0.0007716,2]
[383809997,1757124632478,-2000.0,0.000775,120]
[383809998,1757124632488,-500.0,0.00077699,2]
[383809999,1757124632501,-400.0,0.00077699,120]
[383810000,1757124632511,-400.0,0.00077699,120]
[383810001,1757124632520,-400.0,0.00077699,120]
[383810002,1757124632530,-400.0,0.00077699,120]
[383810003,1757124632539,-400.0,0.00077699,120]
[383810004,1757124632551,-400.0,0.00077699,120]
[383810005,1757124632561,-239.57228504,0.00077699,120]
[383810006,1757124632571,-407.98065568,0.00077699,120]
[383810007,1757124632580,-400.0,0.00077699,120]
[383810008,1757124632590,-400.0,0.00077699,120]
[383810009,1757124632600,-221.71258704,0.00077699,120]
[383810010,1757124632610,-419.97071938,0.00077699,120]
[383810011,1757124632620,-400.0,0.00077699,120]
[383810012,1757124632630,-400.0,0.00077699,120]
[383810013,1757124632639,-400.0,0.00077699,120]
[383810014,1757124632647,-400.0,0.00077699,120]
[383810015,1757124632656,-400.0,0.00077699,120]
[383810016,1757124632664,-404.69702003,0.00077699,120]
[383810017,1757124632674,-400.0,0.00077699,120]
[383810018,1757124632683,-402.54998552,0.00077699,120]
[383810020,1757124632695,-404.42571549,0.00077699,120]
[383810021,1757124632704,-403.74005596,0.00077699,120]
[383810022,1757124632715,-400.0,0.00077699,120]
[383810023,1757124632726,-412.11219403,0.00077699,120]
[383810024,1757124632736,-411.98342336,0.00077699,120]
[383810025,1757124632746,-402.68214856,0.00077699,120]
[383810026,1757124632756,-406.37555958,0.00077699,120]
[383810027,1757124632766,-407.29696043,0.00077699,120]
[383810028,1757124632776,-403.34833499,0.00077699,120]
[383810029,1757124632786,-423.38338471,0.00077699,120]
[383810030,1757124632806,-403.18551664,0.00077699,120]
[383810031,1757124632816,-411.25963864,0.00077699,120]
[383810032,1757124632826,-402.73169272,0.00077699,120]
[383810033,1757124632836,-421.32676565,0.00077699,120]
[383810034,1757124632846,-403.24160192,0.00077699,120]
[383810035,1757124632856,-406.27343215,0.00077699,120]
[383810036,1757124632866,-409.49397191,0.00077699,120]
[383810037,1757124632876,-400.0,0.00077699,120]
[383810038,1757124632887,-409.39461338,0.00077699,120]
[383810039,1757124632897,-407.98431991,0.00077699,120]
[383810040,1757124632907,-400.0,0.00077699,120]
[383810041,1757124632918,-400.0,0.00077699,120]
[383810042,1757124632928,-1000.0,0.00077699,120]
[383810043,1757124632938,-400.0,0.00077699,60]
[383810044,1757124632948,-520.03,0.00077699,120]
[383810045,1757124632958,-405.83107473,0.00077699,120]
[383810046,1757124632968,-400.0,0.00077699,120]
[383810047,1757124632978,-400.0,0.00077699,120]
[383810048,1757124632988,-338.43,0.00077699,120]
[383810049,1757124632998,-400.0,0.00077699,120]
[383810050,1757124633009,-409.43015329,0.00077699,120]
[383810051,1757124633019,-409.26080705,0.00077699,120]
[383810052,1757124633028,-270.43081978,0.00077699,120]
[383810053,1757124633041,-144.91918022,0.00077699,120]
[383810054,1757124633051,-402.38271194,0.00077699,120]
[383810055,1757124633061,-408.15032971,0.00077699,120]
[383810056,1757124633071,-364.2072787,0.00077699,120]
[383810057,1757124633088,-42.16311095,0.00077699,120]
[383810058,1757124633098,-400.0,0.00077699,120]
[383810059,1757124633109,-403.00451123,0.00077699,120]
[383810060,1757124633119,-402.06052398,0.00077699,120]
[383810061,1757124633130,-400.0,0.00077699,120]
[383810062,1757124633140,-374.42848679,0.00077699,120]
[383810063,1757124633150,-485.25341488,0.00077699,120]
[383810064,1757124633160,-400.0,0.00077699,120]
[383810065,1757124633170,-246.63544976,0.00077699,120]
[383810066,1757124633182,-157.82266466,0.00077699,120]
[383810067,1757124633193,-400.0,0.00077699,120]
[383810068,1757124633203,-400.0,0.00077699,2]
[383810069,1757124633213,-101.86733534,0.00077699,120]
[383810070,1757124633273,1000.0,0.000727,2]
[383810073,1757124637607,-300.79340221,0.00077699,120]
[383810074,1757124637618,-400.0,0.00077699,120]
[383810075,1757124637628,-526.72,0.00077699,120]
[383810076,1757124637639,-400.0,0.00077699,120]
[383810077,1757124637649,-400.0,0.00077699,120]
[383810078,1757124637659,-400.0,0.00077699,120]
[383810079,1757124637669,-400.0,0.00077699,120]
[383810080,1757124637679,-500.0,0.00077699,2]
[383810081,1757124637690,-218.67,0.00077699,120]
[383810082,1757124637700,-400.0,0.00077699,120]
[383810083,1757124637710,-400.0,0.00077699,120]
[383810084,1757124637721,-439.12,0.00077699,120]
[383810085,1757124637731,-400.0,0.00077699,120]
[383810086,1757124637742,-300.0,0.00077699,120]
[383810087,1757124637753,-474.27,0.00077699,120]
[383810088,1757124637764,-400.0,0.00077699,120]
[383810089,1757124637775,-482.12299961,0.00077699,120]
[383810090,1757124637785,-437.77,0.00077699,120]
[383810091,1757124637794,-400.0,0.00077699,120]
[383810092,1757124637805,-400.0,0.00077699,120]
[383810093,1757124637815,-400.0,0.00077699,120]
[383810094,1757124637825,-400.0,0.00077699,120]
[383810095,1757124637835,-406.06,0.00077699,120]
[383810096,1757124637845,-424.27276196,0.00077699,120]
[383810097,1757124637855,-166.28892212,0.00077699,120]
[383810098,1757124637865,-400.0,0.00077699,120]
[383810099,1757124637875,-400.0,0.00077699,120]
[383810100,1757124637885,-408.52,0.00077699,120]
[383810101,1757124637896,-400.0,0.00077699,120]
[383810102,1757124637906,-400.0,0.00077699,120]
[383810103,1757124637916,-400.0,0.00077699,120]
[383810104,1757124637926,-400.0,0.00077699,120]
[383810105,1757124637937,-400.0,0.00077699,120]
[383810106,1757124637947,-400.0,0.00077699,120]
[383810107,1757124637958,-466.46,0.00077699,120]
[383810108,1757124637967,-400.0,0.00077699,120]
[383810109,1757124637977,-400.0,0.00077699,120]
[383810110,1757124637987,-1062.55,0.00077699,120]
[383810111,1757124637997,-400.0,0.00077699,120]
[383810112,1757124638007,-400.0,0.00077699,120]
[383810113,1757124638016,-401.01,0.00077699,120]
[383810115,1757124638026,-155555.0,0.000777,120]
[383810117,1757124638036,-3078.76474496,0.00077708,49]
[383810119,1757124638051,-741.77087123,0.00077742,15]
[383810121,1757124638062,-401.95470125,0.00077807,120]
[383810124,1757124638073,-400.0,0.00077807,120]
[383810127,1757124638083,-9459.0,0.00077808,120]
[383810129,1757124638094,-168.0,0.00077842,2]
[383810131,1757124638104,-741.7708712,0.00077982,15]
[383810133,1757124638114,-400.0,0.00077999,120]
[383810135,1757124638124,-400.0,0.00077999,120]
[383810137,1757124638135,-400.0,0.00077999,120]
[383810139,1757124638145,-1062.55,0.00077999,120]
[383810141,1757124638154,-173971.7485556,0.00078,120]
[383810143,1757124638164,-277.35679052,0.00078149,2]
[383810145,1757124638173,-741.7708712,0.00078222,15]
[383810148,1757124638184,-40630.83816712,0.00078429,120]
[383810150,1757124638194,-741.7708712,0.00078461,15]
[383810152,1757124638204,-5000.0,0.000785,120]
[383810154,1757124638214,-157.0,0.000787,120]
[383810156,1757124638224,-159.0,0.000787,120]
[383810158,1757124638234,-741.7708712,0.00078701,15]
[383810160,1757124638243,-741.7708712,0.00078941,15]
[383810162,1757124638253,-2000.0,0.00079,120]
[383810164,1757124638263,-741.7708712,0.00079181,15]
[383810166,1757124638273,-364.7094969,0.00079222,9]
[383810167,1757124638283,-741.7708712,0.0007942,15]
[383810170,1757124638294,-287.61899177,0.00079518,2]
[383810172,1757124638304,-168.0,0.0007954,2]
[383810174,1757124638314,-168.0,0.00079583,2]
[383810176,1757124638325,-741.7708712,0.0007966,15]
[383810178,1757124638335,-168.0,0.00079726,2]
[383810180,1757124638346,-346.67655944,0.00079726,110]
[383810182,1757124638356,-168.0,0.00079803,2]
[383810184,1757124638365,-401.76402095,0.00079886,120]
[383810186,1757124638376,-312.82,0.00079888,120]
[383810188,1757124638386,-12113.346,0.0007989,2]
[383810190,1757124638396,-6523.6291,0.0007989,2]
[383810192,1757124638406,-1000.0,0.0007989,30]
[383810194,1757124638416,-152.24023882,0.00079897,120]
[383810196,1757124638426,-197.0,0.00079898,120]
[383810198,1757124638436,-10140.0121,0.00079899,120]
[383810200,1757124638446,-500.0,0.00079899,2]
[383810202,1757124638456,-400.0,0.00079899,120]
[383810204,1757124638466,-400.0,0.00079899,120]
[383810206,1757124638476,-400.0,0.00079899,120]
[383810208,1757124638486,-400.0,0.00079899,120]
[383810210,1757124638501,-400.0,0.00079899,120]
[383810213,1757124638513,-400.0,0.00079899,120]
[383810235,1757124638689,-400.0,0.00079899,120]
[383810239,1757124638738,-400.0,0.00079899,120]
[383810240,1757124638747,-400.0,0.00079899,120]
[383810242,1757124638756,-400.0,0.00079899,120]
[383810244,1757124638765,-400.0,0.00079899,120]
[383810246,1757124638775,-500.0,0.00079899,120]
[383810248,1757124638784,-400.0,0.00079899,120]
[383810251,1757124638794,-400.0,0.00079899,120]
[383810252,1757124638803,-158.4,0.00079899,120]
[383810255,1757124638814,-496.9,0.00079899,120]
[383810257,1757124638823,-400.0,0.00079899,120]
[383810258,1757124638833,-156.89,0.00079899,120]
[383810261,1757124638843,-214.37,0.00079899,120]
[383810262,1757124638852,-434.45748637,0.00079899,120]
[383810264,1757124638861,-249.24,0.00079899,120]
[383810266,1757124638871,-206.2,0.00079899,120]
[383810268,1757124638880,-506.88950295,0.00079899,120]
[383810270,1757124638891,-400.0,0.00079899,120]
[383810272,1757124638900,-400.0,0.00079899,120]
[383810274,1757124638909,-9459.0,0.00079899,120]
[383810276,1757124638919,-400.0,0.00079899,120]
[383810278,1757124638928,-400.0,0.00079899,120]
[383810280,1757124638937,-374.74858406,0.00079899,67]
[383810282,1757124638946,-1062.55,0.00079899,120]
[383810284,1757124638956,-374.74858405,0.000799,67]
[383810286,1757124638965,-198423.9417,0.000799,120]
[383810288,1757124638974,-415.85445379,0.000799,15]
[383810290,1757124638984,-741.7708712,0.000799,15]
[383810292,1757124638993,-188.41023022,0.000799,120]
[383810294,1757124639003,-201.56406908,0.000799,17]
[383810296,1757124639012,-374.74858405,0.000799,67]
[383810298,1757124639021,-449.22263956,0.000799,2]
[383810300,1757124639031,-672.79587461,0.00079921,120]
[383810302,1757124639040,-151.61,0.00079981,120]
[383810304,1757124639049,-151.61,0.00079981,120]
[383810306,1757124639059,-151.61,0.00079981,120]
[383810308,1757124639068,-151.61,0.00079981,120]
[383810310,1757124639078,-151.61,0.00079981,120]
[383810312,1757124639087,-151.61,0.00079981,120]
[383810314,1757124639096,-151.61,0.00079981,120]
[383810316,1757124639105,-151.61,0.00079981,120]
[383810318,1757124639114,-151.61,0.00079981,120]
[383810320,1757124639123,-151.61,0.00079989,120]
[383810322,1757124639132,-151.61,0.00079989,120]
[383810324,1757124639143,-400.0,0.00079989,120]
[383810326,1757124639152,-1062.55,0.00079989,120]
[383810328,1757124639162,-469.2366597,0.0007999,120]
[383810330,1757124639171,-151.61,0.0007999,120]
[383810332,1757124639181,-151.61,0.0007999,120]
[383810334,1757124639190,-151.61,0.0007999,120]
[383810336,1757124639200,-151.61,0.0007999,120]
[383810338,1757124639210,-151.61,0.0007999,120]
[383810340,1757124639219,-151.61,0.0007999,120]
[383810342,1757124639228,-151.61,0.0007999,120]
[383810344,1757124639237,-151.61,0.0007999,120]
[383810346,1757124639246,-151.61,0.0007999,120]
[383810347,1757124639256,-151.61,0.0007999,120]
[383810349,1757124639265,-151.61,0.0007999,120]
[383810351,1757124639275,-151.61,0.0007999,120]
[383810353,1757124639285,-151.61,0.0007999,120]
[383810355,1757124639294,-151.61,0.0007999,120]
[383810357,1757124639303,-151.61,0.0007999,120]
[383810359,1757124639312,-151.61,0.0007999,120]
[383810361,1757124639322,-151.61,0.0007999,120]
[383810363,1757124639331,-151.61,0.0007999,120]
[383810365,1757124639341,-151.61,0.0007999,120]
[383810367,1757124639351,-151.61,0.0007999,120]
[383810369,1757124639360,-151.61,0.0007999,120]
[383810371,1757124639370,-151.61,0.0007999,120]
[383810373,1757124639379,-151.61,0.0007999,120]
[383810375,1757124639390,-151.61,0.0007999,120]
[383810377,1757124639400,-151.61,0.0007999,120]
[383810379,1757124639410,-151.61,0.0007999,120]
[383810382,1757124639420,-151.61,0.0007999,120]
[383810384,1757124639430,-151.61,0.0007999,120]
[383810386,1757124639439,-151.61,0.0007999,120]
[383810389,1757124639449,-151.61,0.0007999,120]
[383810392,1757124639458,-151.61,0.0007999,120]
[383810395,1757124639467,-151.61,0.0007999,120]
[383810398,1757124639476,-151.61,0.0007999,120]
[383810401,1757124639485,-151.61,0.0007999,120]
[383810404,1757124639497,-151.61,0.0007999,120]
[383810407,1757124639506,-151.61,0.0007999,120]
[383810410,1757124639516,-151.61,0.0007999,120]
[383810412,1757124639526,-151.61,0.0007999,120]
[383810414,1757124639535,-151046.2095533,0.00079991,120]
[383810416,1757124639549,-289.0524453,0.00079991,120]
[383810723,1757124642958,-4.9118904,0.000799,2]
[383810854,1757124644461,-589.29248274,0.000799,2]
[383810856,1757124644471,-958714.25056813,0.00079991,120]
[383810865,1757124644552,-62.24588062,0.00079991,120]
[383811004,1757124645877,-1.76250036,0.00077807,120]
[383811195,1757124653054,170.0,0.00072,120]
[383811196,1757124656809,1000.0,0.000727,30]
[383811197,1757124667399,249.84,0.00039797,2]
[383811198,1757124693603,203.64666808,0.0007,120]
[383811200,1757124729155,166.0,0.00038,120]
[383811201,1757124730859,166.0,0.000583,120]
[383811202,1757124739901,528.35098166,0.00037758,7]
[383811203,1757124740341,500.0,0.00039142,7]
[383811204,1757124740732,500.0,0.0005495,60]
[383811205,1757124742246,160.0,0.00038,120]
[383811206,1757124812533,308.4539416,0.000249,2]
[383811207,1757124986631,269.89719893,0.000249,2]
[383811209,1757125509207,49421.64885947,0.0002,2]
[383811210,1757125509453,50000.0,0.0002,2]
[383811211,1757125509483,50000.0,0.0002,2]
[383811212,1757125509517,50000.0,0.0002,2]
[383811213,1757125509547,28385.27131117,0.0002,2]
[383811215,1757125621148,5000.00766908,0.00024,5]
[383811216,1757125630504,12982.99470952,0.000225,2]
[383811217,1757125659266,625.36740687,0.00018,2]
[383811218,1757125659291,21206.84353595,0.00018,2]
[383811219,1757125678432,5495.04432663,0.00022,4]
[383811220,1757125678507,1747.89004378,0.000181,2]
[383811221,1757125680660,21550.22209364,0.0002,2]
[383811222,1757125680687,50000.0,0.0002,2]
[383811223,1757125680725,50000.0,0.0002,2]
[383811224,1757125680758,50000.0,0.0002,2]
[383811225,1757125680788,38866.54025426,0.0002,2]
[383811228,1757125745142,-10545.07131152,0.000265,2]
[383811229,1757125745166,-156.96,0.00028206,2]
[383811230,1757125745186,-5000.0,0.0003013,2]
[383811231,1757125745205,-150.0,0.000315,2]
[383811232,1757125745226,-411.99607889,0.0003186,120]
[383811233,1757125745247,-2012.35023504,0.00032,2]
[383811234,1757125745273,-500.0,0.00033317,7]
[383811235,1757125745295,-241.0,0.000337,2]
[383811236,1757125745317,-237.0,0.0003488,2]
[383811237,1757125745337,-168.91930302,0.0003489,14]
[383811238,1757125745362,-232.0,0.0003607,2]
[383811239,1757125745383,-227.77345,0.0003662,2]
[383811240,1757125745405,-4652.27274405,0.000368,120]
[383811241,1757125745428,-372.13242965,0.000369,120]
[383811242,1757125745449,-227.0,0.0003725,2]
[383811243,1757125745471,-310.67481318,0.00037432,15]
[383811244,1757125745492,-4536.66877465,0.00037433,2]
[383811245,1757125753121,-13771.66952,0.00037433,2]
[383811246,1757125754129,-8140.51308,0.00037433,2]
[383811247,1757125756146,-477.16862535,0.00037433,2]
[383811248,1757125756172,-1927.71632881,0.0003752,2]
[383811249,1757125756197,-227.77345,0.0003762,2]
[383811250,1757125756224,-172.61,0.00037912,2]
[383811251,1757125756250,-165.0,0.00038,120]
[383811252,1757125756277,-159.0,0.00038,120]
[383811253,1757125756301,-1670.02287584,0.00038,120]
[383811254,1757125759130,-11746.44508737,0.00038,120]
[383811255,1757125759160,-205.0608559,0.00038172,4]
[383811256,1757125759188,-30170.82969566,0.00038172,4]
[383811257,1757125759216,-1737.38,0.000382,2]
[383811258,1757125759243,-300.0,0.0003832,10]
[383811259,1757125759269,-1124.24575216,0.0003833,13]
[383811260,1757125759295,-5687.72,0.000384,14]
[383811261,1757125759327,-222.0,0.0003843,2]
[383811262,1757125759356,-227.77345,0.0003862,2]
[383811263,1757125759382,-269.29286367,0.00038973,5]
[383811264,1757125759407,-500.0,0.00038973,5]
[383811265,1757125759431,-37575.36998734,0.00039,120]
[383811266,1757125763114,-254.27597058,0.00038172,4]
[383811267,1757125763136,-28761.08284942,0.00039,120]
[383811268,1757125771104,-3078.76474496,0.00038072,10]
[383811269,1757125771127,-12181.41172769,0.0003832,4]
[383811270,1757125801402,-273.0,0.00038172,120]
[383811271,1757125801433,-23214.39208226,0.00038172,120]
[383811272,1757125801463,-918.699428,0.00038172,30]
[383811273,1757125801488,-437.1419718,0.00038172,120]
[383811274,1757125801513,-172.84460859,0.00038172,30]
[383811275,1757125801538,-585.07090764,0.00038172,120]
[383811276,1757125801563,-472.83068148,0.00038172,2]
[383811277,1757125801588,-152.65097679,0.00038172,30]
[383811278,1757125801616,-2973773.36934344,0.00038172,30]
[383811279,1757125827131,-960.31189276,0.00037872,15]
[383811280,1757125827161,-200.0,0.000379,13]
[383811281,1757125827186,-158.0,0.00038,120]
[383811282,1757125827211,-151.77643332,0.00038072,2]
[383811283,1757125827236,-268.72557102,0.00038072,13]
[383811284,1757125827263,-1600.0,0.00038171,3]
[383811285,1757125827287,-200.0,0.00038171,30]
[383811286,1757125827310,-1195.73760931,0.00038171,2]
[383811287,1757125827335,-249.57,0.000382,30]
[383811288,1757125827361,-485.27,0.000382,14]
[383811289,1757125827386,-191.16031,0.0003832,2]
[383811290,1757125827413,-480.14,0.000387,18]
[383811291,1757125827443,-500.0,0.000388,14]
[383811292,1757125827468,-800.0,0.000389,14]
[383811293,1757125827494,-169.68521918,0.00038973,5]
[383811294,1757125827527,-151.58,0.0003899,2]
[383811295,1757125827555,-151.58,0.0003899,2]
[383811296,1757125827580,-151.58,0.0003899,2]
[383811297,1757125827605,-151.58,0.0003899,2]
[383811298,1757125827630,-151.58,0.0003899,2]
[383811299,1757125827655,-151.58,0.0003899,2]
[383811300,1757125827679,-151.58,0.0003899,2]
[383811301,1757125827705,-151.58,0.0003899,2]
[383811302,1757125827732,-151.58,0.0003899,2]